bitfinex-derivatives/quotes_ETHF0:USTF0_20220106
["timestamp","ask_amount","ask_price","bid_price","bid_amount"]
[1641472711577,0.16970752,3334.2,3334.0,1.62834609]
[1641472713179,0.16970752,3334.2,3334.0,2.02552709]
[1641472713579,0.16970752,3334.7,3334.0,2.02552709]
[1641472713779,0.16970752,3334.1,3334.0,2.02552709]
[1641472713981,0.16970752,3334.1,3334.0,1.62834609]
[1641472714180,0.397182,3334.4,3334.0,1.62834609]
[1641472714379,0.16970752,3334.1,3334.0,1.73437083]
[1641472714579,0.16970752,3334.3,3334.0,2.02552709]
[1641472714780,0.16970752,3334.1,3334.0,2.02552709]
[1641472715281,0.16970752,3334.7,3334.0,2.02552709]
[1641472715483,0.16970752,3334.1,3334.0,2.02552709]
[1641472715682,0.397182,3334.6,3334.0,2.02552709]
[1641472715683,0.56688952,3334.6,3334.0,2.02552709]
[1641472716182,0.16970752,3334.1,3334.0,2.02552709]
[1641472716382,0.16970752,3334.5,3334.0,2.02552709]
[1641472716582,0.16970752,3334.5,3334.0,2.71342709]
[1641472716782,0.16970752,3334.7,3334.0,2.71342709]
[1641472716982,0.16970752,3334.4,3334.0,2.71342709]
[1641472717284,0.16970752,3334.6,3334.0,6.71342709]
[1641472717482,0.16970752,3334.3,3334.0,6.71342709]
[1641472717683,0.16970752,3334.5,3334.1,6.298752]
[1641472717983,33.67303609,3335.5,3334.4,2.00479]
[1641472717984,32.9298,3335.5,3334.4,2.00479]
[1641472718182,0.74323609,3335.6,3334.5,1.33732808]
[1641472718385,0.16964758,3335.4,3334.6,5.5]
[1641472718588,0.16964758,3335.5,3334.7,0.781653]
[1641472718788,0.16964758,3335.5,3334.7,6.45631]
[1641472718985,0.16964758,3335.3,3334.7,6.45631]
[1641472719183,0.16964758,3335.4,3334.7,6.45631]
[1641472719384,0.16964758,3335.2,3334.7,6.45631]
[1641472719586,0.16964758,3335.3,3334.7,6.45631]
[1641472719985,0.16964758,3335.1,3334.7,6.45631]
[1641472720184,0.16964758,3335.2,3334.7,6.45631]
[1641472720382,2.00479,3335.9,3334.7,6.45631]
[1641472720584,3.50479,3335.9,3334.7,6.45631]
[1641472722085,3.50479,3335.9,3335.4,2.00479]
[1641472722286,3.50479,3335.9,3335.5,0.397181]
[1641472722688,32.40490815,3336.4,3335.5,0.397181]
[1641472722689,1.49820815,3336.4,3335.5,0.397181]
[1641472722887,0.74323609,3336.5,3335.5,0.397181]
[1641472723288,0.74323609,3336.5,3335.6,4.796163]
[1641472723988,0.99194266,3336.7,3335.9,2.00479]
[1641472724189,2.00479,3336.7,3336.0,0.397181]
[1641472724387,34.48083609,3337.1,3336.1,0.384472]
[1641472724588,0.74323609,3337.1,3336.1,1.179472]
[1641472725187,0.74323609,3337.1,3336.2,4.7953]
[1641472725390,0.74323609,3337.1,3336.1,1.179472]
[1641472725588,30.8967,3337.5,3336.1,1.179472]
[1641472725788,69.05914648,3337.7,3336.1,1.179472]
[1641472726088,2.00479,3337.6,3336.8,2.00479]
[1641472726390,0.397182,3337.5,3336.8,2.59689]
[1641472726787,1.5,3337.0,3336.8,9e-05]
[1641472726988,0.857164,3336.9,3335.9,1.0]
[1641472727588,2.357164,3336.9,3335.9,1.0]
[1641472728088,2.00479,3336.5,3335.9,1.0]
[1641472728291,0.397182,3336.4,3335.9,1.0]
[1641472729089,0.397182,3336.4,3335.5,1.49763598]
[1641472729489,2.00479,3336.5,3335.5,1.49763598]
[1641472729490,1.401972,3336.5,3335.5,1.49763598]
[1641472729790,0.5,3336.0,3335.6,0.09426883]
[1641472729990,0.5,3336.1,3335.6,0.09426883]
[1641472730191,3.50304753,3336.0,3335.5,0.09426883]
[1641472730390,2.00479,3336.0,3335.5,0.09426883]
[1641472730590,3.50306773,3336.0,3335.5,0.09426883]
[1641472732092,2.00479,3336.0,3335.4,2.83257675]
[1641472733393,2.00479,3336.0,3335.5,1.0]
[1641472733793,2.00479,3336.0,3335.9,1.0]
[1641472733995,2.464772,3336.0,3335.6,0.08390929]
[1641472734194,2.464772,3336.0,3335.9,0.08390929]
[1641472734393,2.464772,3336.0,3335.7,0.08390929]
[1641472734794,1.00479,3336.0,3335.7,0.397182]
[1641472734994,1.00479,3336.0,3335.8,0.08390929]
[1641472735194,1.00479,3336.0,3335.8,0.87350929]
[1641472735595,1.49810041,3336.4,3335.9,0.48109129]
[1641472735796,1.401972,3336.5,3335.9,1.48109129]
[1641472736096,1.401972,3336.5,3336.0,0.08390929]
[1641472736504,1.401972,3336.5,3336.1,0.781654]
[1641472736702,0.74323609,3337.0,3336.4,1.0]
[1641472736901,0.74323609,3337.0,3336.5,1.0]
[1641472737101,0.74323609,3337.0,3336.5,1.050482]
[1641472737302,2.24099993,3337.1,3336.6,0.08390929]
[1641472737501,2.24099993,3337.1,3336.7,1.0]
[1641472737703,2.24099993,3337.1,3336.8,0.397182]
[1641472737901,0.459982,3337.0,3336.8,0.397182]
[1641472738102,0.459982,3337.0,3336.8,0.48109129]
[1641472738303,0.459982,3337.0,3336.9,0.08390929]
[1641472738506,0.74323609,3337.1,3336.9,0.08390929]
[1641472738703,2.00479,3337.2,3337.0,0.397182]
[1641472738903,2.00479,3337.2,3337.0,0.781654]
[1641472739105,2.00479,3337.2,3337.1,1.08390929]
[1641472739304,2.464772,3337.2,3337.1,1.08390929]
[1641472739805,2.00479,3337.2,3337.1,1.08390929]
[1641472740005,2.00479,3337.2,3337.1,0.08390929]
[1641472740206,2.464772,3337.2,3337.1,0.08390929]
[1641472740505,3.96247976,3337.2,3336.9,0.08390929]
[1641472741204,4.46247976,3337.2,3336.9,0.08390929]
[1641472741805,4.46247976,3337.2,3336.6,0.08390929]
[1641472742005,4.46247976,3337.2,3337.0,0.08390929]
[1641472742207,4.46247976,3337.2,3336.7,0.08390929]
[1641472742408,4.46247976,3337.2,3337.1,0.08390929]
[1641472742607,4.46247976,3337.2,3336.8,0.08390929]
[1641472742809,4.46247976,3337.2,3337.1,0.08390929]
[1641472743111,4.46247976,3337.2,3336.9,0.08390929]
[1641472743310,0.5,3337.0,3336.5,1.0]
[1641472743811,1.99787152,3336.9,3336.5,0.08398029]
[1641472744011,0.5,3336.6,3335.5,33.1283]
[1641472744213,2.00479,3336.4,3335.6,2.00479]
[1641472744411,2.70679,3336.4,3335.7,0.384472]
[1641472744612,2.70679,3336.4,3336.0,1.0]
[1641472744812,1.70679,3336.4,3335.7,0.384472]
[1641472745012,1.70679,3336.4,3336.1,1.0746542]
[1641472745411,1.00479,3336.4,3336.3,1.0]
[1641472745613,1.00479,3336.4,3336.3,1.397182]
[1641472745810,1.00479,3336.4,3336.3,2.196382]
[1641472746011,1.00479,3336.4,3336.3,2.2710362]
[1641472746212,1.00479,3336.4,3336.3,1.2710362]
[1641472747013,1.00479,3336.4,3336.3,0.0746542]
[1641472747413,1.464772,3336.4,3336.3,0.0746542]
[1641472747618,1.00479,3336.4,3335.8,0.0746542]
[1641472747813,1.49795679,3336.7,3336.3,0.0746542]
[1641472748214,1.49795679,3336.7,3336.0,2.00479]
[1641472748414,1.49795679,3336.7,3336.4,0.0746542]
[1641472748617,0.459982,3336.6,3336.1,0.0746542]
[1641472748816,0.459982,3336.6,3336.5,0.0746542]
[1641472749217,0.459982,3336.6,3336.2,1.0]
[1641472749418,1.49795679,3336.7,3336.1,0.0746542]
[1641472749617,1.49795679,3336.7,3336.3,0.0746542]
[1641472749817,1.49795679,3336.7,3336.2,0.0746542]
[1641472750017,1.49795679,3336.7,3336.2,1.0746542]
[1641472750220,1.49795679,3336.7,3336.4,1.0]
[1641472750818,0.16957008,3336.6,3336.5,0.0746542]
[1641472751218,0.62955208,3336.6,3336.5,0.0746542]
[1641472751417,0.16957008,3336.6,3336.5,0.0746542]
[1641472751619,0.16957008,3336.6,3336.4,0.0746542]
[1641472751816,0.16957008,3336.6,3336.0,4.00958]
[1641472751817,0.16957008,3336.6,3336.5,0.0746542]
[1641472752020,0.62955208,3336.6,3336.5,0.0746542]
[1641472752217,2.63434208,3336.6,3336.2,0.0746542]
[1641472752418,2.63434208,3336.6,3336.5,0.0746542]
[1641472752917,3.13434208,3336.6,3335.7,2.00479]
[1641472753319,0.16957008,3336.5,3335.7,2.00479]
[1641472754319,0.16957008,3336.6,3336.4,2.00479]
[1641472754521,0.459982,3336.5,3336.4,2.00479]
[1641472756219,2.24119288,3336.7,3336.4,2.00479]
[1641472756421,1.49795679,3336.7,3336.4,2.70169]
[1641472756621,1.49795679,3336.7,3336.5,1.0]
[1641472756821,1.49795679,3336.7,3336.4,2.70169]
[1641472757221,0.459982,3336.6,3336.4,2.70169]
[1641472757422,1.49795679,3336.7,3336.4,2.70169]
[1641472757622,1.49795679,3336.7,3336.5,1.0]
[1641472757821,0.74323609,3336.8,3336.4,3.098872]
[1641472758423,0.74323609,3336.7,3336.4,3.098872]
[1641472759223,0.74323609,3336.8,3336.4,3.098872]
[1641472760224,0.74323609,3336.6,3336.4,3.098872]
[1641472760423,0.74323609,3336.6,3336.5,1.0]
[1641472761327,0.74323609,3336.6,3336.4,3.483344]
[1641472761825,0.74323609,3336.9,3336.4,3.483344]
[1641472762228,0.74323609,3336.9,3336.7,1.0]
[1641472762426,0.74323609,3336.9,3336.7,1.397182]
[1641472762926,0.99194266,3337.2,3336.7,1.397182]
[1641472762927,0.74323609,3337.0,3336.7,1.397182]
[1641472763127,0.74323609,3337.0,3336.7,0.397182]
[1641472763330,0.74323609,3337.0,3336.9,1.0]
[1641472763529,0.74323609,3337.0,3336.9,1.397182]
[1641472763931,0.74323609,3337.0,3336.9,2.122682]
[1641472764532,0.74323609,3337.5,3336.9,4.127472]
[1641472764735,0.74323609,3337.5,3337.4,1.0]
[1641472764933,1.20321809,3337.5,3337.4,1.953982]
[1641472765933,1.20321809,3337.5,3337.4,0.76880065]
[1641472766534,0.74323609,3337.5,3337.4,0.76880065]
[1641472768036,0.74323609,3337.8,3337.4,0.76880065]
[1641472768238,0.74323609,3337.8,3337.4,0.84340735]
[1641472768539,0.74323609,3337.8,3337.5,0.0746067]
[1641472768738,0.459982,3337.7,3337.5,0.0746067]
[1641472768937,1.287482,3337.7,3337.5,0.0746067]
[1641472769137,2.03071809,3337.7,3337.5,0.0746067]
[1641472769337,2.03071809,3337.7,3337.0,0.0746067]
[1641472769740,0.16953949,3337.6,3337.0,0.0746067]
[1641472769939,0.16953949,3337.6,3337.5,0.5948]
[1641472770141,0.62952149,3337.6,3337.5,0.5948]
[1641472770340,0.62952149,3337.6,3337.5,0.6694067]
[1641472770542,3.64295912,3337.6,3337.5,0.6694067]
[1641472770943,4.10294112,3337.6,3337.5,0.6694067]
[1641472771343,3.11099846,3337.6,3337.5,0.6694067]
[1641472772144,5.60053673,3337.6,3337.5,0.6694067]
[1641472772844,4.40599407,3337.6,3337.5,0.6694067]
[1641472774449,4.95512793,3337.6,3337.5,0.6694067]
[1641472775048,5.41510993,3337.6,3337.5,0.6694067]
[1641472775252,4.40599407,3337.6,3337.5,0.6694067]
[1641472775451,3.94601207,3337.6,3337.5,0.6694067]
[1641472775949,1.94122207,3337.6,3337.5,0.6694067]
[1641472776150,0.44362646,3337.6,3337.5,1.3256067]
[1641472777352,1.24249297,3337.8,3337.5,1.3256067]
[1641472777557,1.01045844,3337.7,3337.6,0.397182]
[1641472777752,1.17995149,3337.7,3337.6,0.4717887]
[1641472778755,0.16949305,3337.7,3337.6,0.4717887]
[1641472778955,1.01045844,3337.9,3337.7,0.83050695]
[1641472779154,0.459982,3337.8,3337.7,0.83050695]
[1641472779354,1.01045844,3337.9,3337.7,0.83050695]
[1641472780055,0.62948757,3337.8,3337.7,0.83050695]
[1641472780255,1.63994601,3337.8,3337.7,0.83050695]
[1641472780455,1.17996401,3337.8,3337.7,0.83050695]
[1641472780856,0.62948757,3337.8,3337.7,0.83050695]
[1641472781156,0.62948757,3337.8,3337.5,1.0367]
[1641472781759,1.66950557,3337.7,3337.5,1.0367]
[1641472781958,0.459982,3337.6,3336.9,1.7255]
[1641472782159,1.20578757,3337.6,3336.9,1.7255]
[1641472782362,0.74580557,3337.6,3337.0,0.384472]
[1641472782559,2.00479,3337.4,3337.0,0.384472]
[1641472783062,1.1795536,3337.3,3337.0,0.384472]
[1641472783462,1.1795536,3337.3,3337.0,0.781654]
[1641472783662,0.16950557,3337.2,3337.0,0.781654]
[1641472783863,0.1795536,3337.3,3337.0,0.781654]
[1641472784265,2.00479,3337.4,3337.0,0.781654]
[1641472784966,0.16951302,3337.3,3337.0,0.781654]
[1641472785564,0.16951302,3337.3,3337.0,0.397182]
[1641472788869,2.7625992,3337.4,3337.3,0.30758698]
[1641472789468,2.7625992,3337.4,3337.3,2.66688698]
[1641472790368,3.3920859,3337.4,3337.3,2.66688698]
[1641472790568,2.9321039,3337.4,3337.3,2.66688698]
[1641472790970,2.1742947,3337.4,3337.3,2.66688698]
[1641472791169,2.6342767,3337.4,3337.3,2.66688698]
[1641472791369,2.1742947,3337.4,3337.3,2.66688698]
[1641472792871,2.9321039,3337.4,3337.3,2.66688698]
[1641472793372,3.3920859,3337.4,3337.3,2.66688698]
[1641472793772,0.9273139,3337.4,3337.3,2.66688698]
[1641472794173,1.3872959,3337.4,3337.3,2.66688698]
[1641472794372,0.9273139,3337.4,3337.3,2.66688698]
[1641472794974,0.64613997,3337.4,3337.3,2.66688698]
[1641472795275,0.64613997,3337.4,3337.3,2.81603564]
[1641472795873,0.1695047,3337.4,3337.3,2.81603564]
[1641472796074,0.92827543,3337.4,3337.3,2.81603564]
[1641472796273,0.75877073,3337.4,3337.3,2.81603564]
[1641472796473,0.92827543,3337.4,3337.3,2.81603564]
[1641472796873,1.38825743,3337.4,3337.3,2.81603564]
[1641472797073,0.92827543,3337.4,3337.3,2.81603564]
[1641472797374,1.01137472,3337.7,3337.3,4.31603564]
[1641472797577,1.49099156,3338.2,3337.6,1.5]
[1641472797777,1.49099156,3338.2,3337.9,1.5]
[1641472797975,1.49099156,3338.2,3338.0,0.397182]
[1641472798175,1.76006126,3338.5,3338.1,29.72061218]
[1641472798375,3.35192539,3339.2,3338.1,33.01375718]
[1641472798575,2.9887049,3338.9,3338.2,1.897182]
[1641472798775,2.9887049,3338.9,3338.8,4.00958]
[1641472798976,2.9460049,3338.9,3338.8,4.00958]
[1641472799178,3.1154275,3338.9,3338.8,4.17728233]
[1641472799378,3.1154275,3338.9,3338.8,0.16770233]
[1641472799580,3.35192539,3339.2,3338.8,0.16770233]
[1641472799878,3.35192539,3339.2,3338.7,0.55217433]
[1641472800079,1.51816713,3339.4,3338.8,0.397182]
[1641472800478,1.51816713,3339.4,3338.8,0.990082]
[1641472800679,1.51816713,3339.4,3338.9,2.00479]
[1641472800880,0.1525039,3339.3,3338.9,2.57139386]
[1641472801080,0.1525039,3339.3,3339.0,0.16942186]
[1641472801279,0.51887094,3339.5,3339.0,0.16942186]
[1641472801680,0.1525039,3339.4,3339.0,0.16942186]
[1641472801882,1.5,3339.3,3339.0,0.16942186]
[1641472802083,2.99684913,3339.1,3337.3,2.48248698]
[1641472802284,1.5,3338.8,3337.4,31.4239]
[1641472802683,2.00479,3338.3,3337.4,33.42869]
[1641472802886,2.00479,3338.6,3337.4,2.00479]
[1641472803085,2.00479,3338.6,3337.5,0.47648304]
[1641472803285,0.16945436,3338.5,3337.5,0.64421115]
[1641472803688,0.16945436,3338.5,3337.6,0.16772811]
[1641472805391,0.16945436,3338.5,3337.5,0.16772811]
[1641472805590,1.5,3338.0,3337.5,0.16772811]
[1641472805787,1.5,3338.0,3337.7,0.16772811]
[1641472805987,0.62943636,3337.9,3337.6,0.16772811]
[1641472806189,0.62943636,3337.9,3337.8,0.16772811]
[1641472806590,0.16945436,3337.8,3337.7,0.16772811]
[1641472806790,0.62943636,3337.9,3337.4,2.00479]
[1641472806990,0.96205436,3337.8,3337.4,2.00479]
[1641472807389,0.16945436,3337.7,3337.4,2.00479]
[1641472807591,0.16945436,3337.7,3337.5,0.397182]
[1641472808191,0.16945436,3338.0,3337.5,0.397182]
[1641472808392,0.16945436,3337.6,3337.5,0.397182]
[1641472808793,0.16945436,3337.9,3337.5,0.397182]
[1641472808994,3.5020941,3338.1,3337.5,0.397182]
[1641472809393,1.5,3337.7,3337.5,0.397182]
[1641472810293,2.0,3337.7,3337.5,0.397182]
[1641472810695,2.5,3337.7,3337.5,0.397182]
[1641472813002,1.01097712,3338.7,3337.5,3.39393704]
[1641472813197,1.01097712,3338.7,3337.5,4.01763704]
[1641472813398,0.16943321,3338.6,3337.6,4.793863]
[1641472814197,0.16943321,3338.6,3337.6,5.27024114]
[1641472814399,0.16943321,3338.6,3337.7,1.01011311]
[1641472814898,0.16943321,3339.1,3338.5,2.00479]
[1641472815099,1.49683569,3339.2,3338.3,2.85369]
[1641472815298,0.16943543,3339.0,3338.3,2.85369]
[1641472815502,0.16943543,3339.1,3338.3,2.85369]
[1641472815899,0.16943543,3338.9,3338.3,2.85369]
[1641472816101,0.16943543,3339.0,3338.3,2.00479]
[1641472816303,1.49718529,3338.4,3338.3,2.00479]
[1641472816502,1.95716729,3338.4,3338.3,2.00479]
[1641472816703,1.49718529,3338.4,3338.3,2.00479]
[1641472816903,0.16943543,3338.4,3338.3,2.00479]
[1641472817304,0.16943543,3338.4,3338.3,2.401972]
[1641472817504,2.00479,3338.9,3338.3,2.00479]
[1641472817505,0.16943543,3338.8,3338.3,2.00479]
[1641472817705,0.16943543,3338.4,3338.3,2.00479]
[1641472818107,1.66646831,3338.7,3338.3,2.00479]
[1641472818304,0.16943543,3338.4,3338.3,2.00479]
[1641472818505,0.16943543,3338.6,3338.3,2.00479]
[1641472818705,0.16943543,3338.4,3338.3,2.00479]
[1641472818906,0.16943543,3338.5,3338.3,2.00479]
[1641472819109,0.16943543,3338.4,3338.3,2.00479]
[1641472819711,0.16943543,3338.7,3338.3,2.00479]
[1641472820011,0.16943543,3338.4,3338.3,2.00479]
[1641472820211,0.16943543,3338.6,3338.3,2.401972]
[1641472820411,2.76314546,3338.9,3338.3,2.401972]
[1641472820613,0.16944188,3338.5,3338.3,2.401972]
[1641472821011,0.16944188,3338.8,3338.3,2.401972]
[1641472821311,2.76314546,3338.9,3338.3,2.401972]
[1641472821510,0.16944003,3338.7,3338.3,2.401972]
[1641472821712,0.16944003,3338.8,3338.3,2.00479]
[1641472821912,0.16944003,3338.6,3338.4,0.16771834]
[1641472822811,0.16944003,3338.6,3338.2,0.16771834]
[1641472823012,0.16944003,3338.6,3338.2,0.62731834]
[1641472823412,0.16944003,3338.6,3338.3,0.16771834]
[1641472823614,0.459982,3338.5,3338.3,0.16771834]
[1641472824415,0.16944003,3338.4,3338.3,0.16771834]
[1641472824816,2.17423003,3338.4,3338.3,0.16771834]
[1641472830020,1.17423003,3338.4,3338.3,0.16771834]
[1641472830423,1.17423003,3338.4,3337.7,2.76089504]
[1641472830424,12.91,3338.3,3337.7,2.76089504]
[1641472830722,12.91,3338.3,3336.1,1.49734222]
[1641472830723,1.5,3338.0,3337.2,2.00479]
[1641472830925,2.00479,3337.8,3337.2,2.00479]
[1641472831123,2.00479,3337.8,3337.6,0.75666571]
[1641472831323,0.459982,3337.7,3337.6,0.75666571]
[1641472831727,0.62929873,3337.7,3337.6,0.92612266]
[1641472832325,0.62929873,3337.7,3337.6,0.16945695]
[1641472832925,0.62929873,3337.7,3337.3,0.16945695]
[1641472833325,0.459982,3337.7,3337.6,0.16945695]
[1641472833526,2.00479,3337.8,3337.6,0.16945695]
[1641472833725,2.00479,3337.8,3337.4,0.16945695]
[1641472833924,2.00479,3337.8,3337.7,0.16945695]
[1641472834125,2.00479,3337.8,3337.5,0.16945695]
[1641472834323,2.00479,3337.8,3337.7,0.16945695]
[1641472834524,2.00479,3337.8,3337.6,0.16945695]
[1641472834724,2.464772,3337.8,3337.6,0.16945695]
[1641472834925,2.464772,3337.8,3337.7,0.16945695]
[1641472835126,2.00479,3337.8,3337.7,0.16945695]
[1641472835327,2.00479,3337.8,3337.3,0.16945695]
[1641472835529,2.00479,3337.8,3337.7,0.16945695]
[1641472835928,2.00479,3337.8,3337.4,0.16945695]
[1641472836328,2.00479,3337.8,3337.7,0.16945695]
[1641472836528,2.464772,3337.8,3337.5,0.16945695]
[1641472836829,2.464772,3337.8,3337.7,0.16945695]
[1641472837029,2.00479,3337.8,3337.6,0.16945695]
[1641472837229,2.00479,3337.8,3337.7,0.16945695]
[1641472837430,2.464772,3337.8,3337.7,0.16945695]
[1641472837629,2.00479,3337.8,3337.4,0.16945695]
[1641472840435,2.00479,3337.8,3337.4,0.56663895]
[1641472840835,2.00479,3337.8,3337.5,0.16945695]
[1641472841140,0.459982,3337.7,3337.5,0.16945695]
[1641472841537,2.00479,3337.8,3337.5,0.16945695]
[1641472842537,2.00479,3337.8,3337.5,0.70245695]
[1641472842937,2.00479,3337.8,3337.6,0.397182]
[1641472843238,2.464772,3337.8,3337.7,0.16945695]
[1641472844039,2.464772,3337.8,3337.3,0.16945695]
[1641472844238,2.464772,3337.8,3337.7,0.16945695]
[1641472844639,2.464772,3337.8,3337.4,0.16945695]
[1641472844839,2.00479,3337.8,3337.7,0.16945695]
[1641472845038,2.464772,3337.8,3337.5,0.16945695]
[1641472845241,2.00479,3337.8,3337.5,0.64593566]
[1641472845439,2.00479,3337.8,3337.7,0.16945695]
[1641472845642,2.00479,3337.8,3337.6,0.16945695]
[1641472845840,2.00479,3337.8,3337.7,0.16945695]
[1641472846246,2.00479,3337.8,3337.6,0.16945695]
[1641472846444,2.00479,3337.8,3337.7,0.16945695]
[1641472846643,3.96235864,3337.8,3336.8,1.51575886]
[1641472846844,1.5,3337.1,3336.8,1.51575886]
[1641472847042,5.50746947,3336.9,3336.8,0.43925886]
[1641472847242,7.00746947,3336.9,3336.2,2.53209544]
[1641472847443,1.5,3336.4,3336.2,1.8967756]
[1641472847642,0.459982,3336.3,3336.0,2.37449399]
[1641472848443,0.16952798,3336.2,3336.0,2.37449399]
[1641472848642,0.459982,3336.1,3336.0,0.63531984]
[1641472849044,2.464772,3336.1,3336.0,0.63531984]
[1641472849345,2.464772,3336.1,3335.4,2.00479]
[1641472849744,2.464772,3336.1,3335.5,0.829372]
[1641472850544,2.464772,3336.1,3335.6,0.41879783]
[1641472851549,2.464772,3336.1,3335.7,0.75934663]
[1641472851747,2.50479,3336.1,3335.8,0.397182]
[1641472851947,0.5,3336.1,3335.8,0.397182]
[1641472852146,0.75913069,3336.5,3335.8,0.397182]
[1641472853050,0.75913069,3336.6,3335.9,2.00479]
[1641472853247,0.75913069,3336.6,3336.0,0.397182]
[1641472853850,2.25713909,3336.6,3336.0,0.397182]
[1641472854249,1.4980084,3336.6,3336.1,0.75934663]
[1641472854449,2.00479,3336.9,3336.2,0.397182]
[1641472854652,0.75913069,3337.0,3336.5,1.5]
[1641472854849,0.75752531,3337.0,3336.5,2.315]
[1641472855049,0.75752531,3337.0,3336.9,2.00479]
[1641472855449,0.75752531,3337.0,3336.9,2.401972]
[1641472855851,0.41522531,3337.0,3336.9,2.401972]
[1641472856653,1.26380869,3337.5,3337.0,0.384472]
[1641472856853,2.00479,3337.8,3337.4,1.5]
[1641472857053,0.48342702,3337.6,3337.4,4.38239]
[1641472857254,0.02737485,3337.7,3337.4,4.38239]
[1641472857456,3.2695017,3338.1,3337.5,0.397182]
[1641472857854,3.2695017,3338.1,3337.6,1.02485229]
[1641472858054,3.2695017,3338.1,3337.7,0.397182]
[1641472858456,2.00479,3338.1,3337.7,0.397182]
[1641472858659,2.00479,3338.1,3337.8,0.384472]
[1641472858856,0.16927647,3338.0,3337.9,0.397182]
[1641472860764,0.16927647,3338.0,3337.2,0.75934663]
[1641472860765,2.12664777,3338.0,3337.2,0.75934663]
[1641472860964,2.00479,3337.5,3337.2,0.75934663]
[1641472861365,0.16927647,3337.4,3337.2,0.75934663]
[1641472861566,0.459982,3337.3,3336.4,33.83439]
[1641472861764,0.459982,3337.3,3336.4,2.00479]
[1641472861966,0.459982,3337.3,3336.8,0.75855441]
[1641472862164,1.49766738,3337.3,3336.8,0.75855441]
[1641472862764,1.63404847,3337.5,3336.8,0.75855441]
[1641472862964,1.49762252,3337.4,3336.8,0.75855441]
[1641472863565,0.15067517,3337.3,3337.0,0.16947361]
[1641472863766,0.153218,3337.2,3337.0,0.16947361]
[1641472863966,0.15067517,3337.3,3337.0,0.16947361]
[1641472863967,0.15067517,3337.4,3337.0,0.16947361]
[1641472864167,2.3927813,3337.5,3337.0,0.16947361]
[1641472864366,0.15067628,3337.3,3337.0,0.16947361]
[1641472864567,0.153218,3337.2,3337.0,0.16947361]
[1641472864766,0.153218,3337.2,3337.0,0.62945561]
[1641472864967,1.64831675,3337.4,3337.0,0.62945561]
[1641472864968,1.49764047,3337.4,3337.0,0.62945561]
[1641472865167,1.63404847,3337.5,3337.1,0.16947361]
[1641472865373,0.15067596,3337.3,3337.1,0.16947361]
[1641472865670,0.153218,3337.2,3337.0,0.16947361]
[1641472865869,0.30389396,3337.2,3336.6,0.7590294]
[1641472866071,0.30389396,3337.2,3337.0,0.459982]
[1641472866269,0.15067596,3337.1,3336.6,0.7590294]
[1641472867171,2.39215377,3337.5,3337.0,0.459982]
[1641472867573,0.15067433,3337.4,3337.0,0.459982]
[1641472868070,0.15067433,3337.4,3336.6,0.7590294]
[1641472869071,0.15067433,3337.4,3336.7,0.7590294]
[1641472872175,1.63404847,3337.5,3337.4,0.84932567]
[1641472872576,0.7581053,3337.7,3337.4,1.30930767]
[1641472873176,0.7581053,3337.7,3337.4,1.70648967]
[1641472873375,0.7581053,3337.8,3337.4,1.70648967]
[1641472874775,1.01080707,3338.0,3337.4,1.70648967]
[1641472874976,13.6681053,3338.2,3337.4,1.70648967]
[1641472875176,0.7581053,3338.2,3337.4,1.70648967]
[1641472875578,0.13222226,3338.0,3337.4,1.70648967]
[1641472876278,0.7581053,3338.2,3337.4,1.70648967]
[1641472876477,1.49742518,3338.0,3337.4,1.70648967]
[1641472876677,0.7581053,3338.2,3337.4,1.70648967]
[1641472876877,0.7581053,3338.2,3337.5,0.384472]
[1641472877181,1.00479,3338.1,3337.5,0.384472]
[1641472877379,1.00479,3338.1,3337.6,0.397182]
[1641472877581,1.7628953,3338.1,3337.6,0.397182]
[1641472877781,0.13222339,3338.0,3337.6,0.397182]
[1641472879784,1.00479,3338.1,3337.6,0.397182]
[1641472880381,1.00479,3338.1,3338.0,0.84932567]
[1641472880982,1.12194307,3338.1,3338.0,1.01877686]
[1641472881282,2.61945794,3338.1,3338.0,1.01877686]
[1641472882883,3.37756324,3338.1,3338.0,1.01877686]
[1641472883284,16.28756324,3338.1,3338.0,1.01877686]
[1641472885285,17.78756324,3338.1,3337.3,2.7638194]
[1641472885487,1.5,3337.7,3337.3,0.7590294]
[1641472885686,1.49768533,3337.5,3337.3,0.7590294]
[1641472885886,1.49768533,3337.5,3337.1,1.0120392]
[1641472885887,1.49768533,3337.5,3337.4,0.7590294]
[1641472886490,1.6335044,3337.5,3337.4,0.92850864]
[1641472887291,3.6382944,3337.5,3337.4,0.16947924]
[1641472887491,16.5482944,3337.5,3337.4,0.16947924]
[1641472887693,16.5482944,3337.5,3337.2,0.16947924]
[1641472887891,16.5482944,3337.5,3337.4,0.16947924]
[1641472888193,0.13581907,3337.4,3337.3,0.16947924]
[1641472888392,0.13581907,3337.4,3336.9,0.7590294]
[1641472888595,16.5482944,3337.5,3336.9,0.7590294]
[1641472888794,0.13581907,3337.4,3336.9,0.7590294]
[1641472890995,0.13581907,3337.4,3336.8,1.18762849]
[1641472891197,0.13581907,3337.4,3336.9,0.384472]
[1641472891497,6.00247533,3337.5,3336.9,0.384472]
[1641472891694,6.00247533,3337.5,3337.0,0.397182]
[1641472892094,4.50479,3337.5,3337.0,0.397182]
[1641472892294,2.5,3337.5,3337.0,0.397182]
[1641472892794,2.5,3337.5,3337.1,1.18762849]
[1641472892996,2.5,3337.5,3337.2,0.397182]
[1641472893295,2.5,3337.5,3337.3,0.459982]
[1641472893496,2.5,3337.5,3337.4,0.397182]
[1641472897499,2.5,3337.5,3337.2,0.7590294]
[1641472897699,15.41,3337.5,3337.3,0.7590294]
[1641472898804,0.7581053,3337.6,3337.4,0.459982]
[1641472899101,0.7581053,3337.6,3337.1,0.384472]
[1641472899302,0.7581053,3337.6,3337.2,0.397182]
[1641472899500,0.7581053,3337.6,3337.5,2.00479]
[1641472899700,0.7581053,3337.6,3337.5,2.464772]
[1641472899901,0.7581053,3337.6,3337.5,2.861954]
[1641472900301,1.01080707,3337.9,3337.5,2.861954]
[1641472900501,12.91,3338.0,3337.5,2.861954]
[1641472901500,1.7628953,3338.1,3337.5,2.861954]
[1641472901703,12.91,3338.0,3337.5,2.861954]
[1641472902301,1.00479,3338.1,3337.5,2.861954]
[1641472902501,0.7581053,3338.2,3337.6,1.5]
[1641472902703,5.3e-06,3338.2,3338.1,1.5]
[1641472902904,5.3e-06,3338.3,3338.1,2.965454]
[1641472903103,5.3e-06,3338.3,3338.2,0.397182]